[Event "Late-Titled-Tuesday-Blitz-April-02-2024"]
[Site "Chess.com"]
[Date "2024.04.02"]
[Round "9"]
[White "Charodej1"]
[Black "N_I_Chess"]
[Result "1-0"]
[WhiteElo "2365"]
[BlackElo "2329"]
[TimeControl "180+1"]
[EndTime "15:43:44 PDT"]
[Termination "Charodej1 won on time"]

1. c4 {[%clk 0:03:00.9]} 1... Nf6 {[%clk 0:02:29.8]} 2. d4 {[%clk 0:02:57.9]}
2... e6 {[%clk 0:02:29.4]} 3. a3 {[%clk 0:02:53.8]} 3... b6 {[%clk 0:02:25.7]}
4. Nd2 {[%clk 0:02:51.3]} 4... Bb7 {[%clk 0:02:25.2]} 5. Ngf3 {[%clk 0:02:50.3]}
5... c5 {[%clk 0:02:23]} 6. e3 {[%clk 0:02:44.9]} 6... cxd4 {[%clk 0:02:18.3]}
7. exd4 {[%clk 0:02:44.6]} 7... d5 {[%clk 0:02:18.8]} 8. b3 {[%clk 0:02:40.7]}
8... Bd6 {[%clk 0:02:07.3]} 9. Be2 {[%clk 0:02:39]} 9... O-O {[%clk 0:02:06.6]}
10. O-O {[%clk 0:02:38.5]} 10... Nbd7 {[%clk 0:02:05.5]} 11. Bb2 {[%clk
0:02:37.3]} 11... Rc8 {[%clk 0:02:04.9]} 12. Re1 {[%clk 0:02:24.6]} 12... Nh5
{[%clk 0:01:56.8]} 13. Bf1 {[%clk 0:02:16.1]} 13... Nhf6 {[%clk 0:01:46.1]} 14.
Rc1 {[%clk 0:02:12.3]} 14... Ne4 {[%clk 0:01:39.7]} 15. Bd3 {[%clk 0:01:45.2]}
15... Nxd2 {[%clk 0:01:34.7]} 16. Nxd2 {[%clk 0:01:43.6]} 16... Qh4 {[%clk
0:01:23.8]} 17. Nf3 {[%clk 0:01:39.1]} 17... Qh6 {[%clk 0:01:23.1]} 18. Qe2
{[%clk 0:01:26.5]} 18... Rfd8 {[%clk 0:01:22.4]} 19. Rcd1 {[%clk 0:01:23.3]}
19... Nf6 {[%clk 0:01:19.8]} 20. Ne5 {[%clk 0:01:12.2]} 20... dxc4 {[%clk
0:01:16.9]} 21. bxc4 {[%clk 0:01:08.3]} 21... Qh5 {[%clk 0:00:58.8]} 22. f3
{[%clk 0:00:34.5]} 22... Qh4 {[%clk 0:00:50.5]} 23. Qe3 {[%clk 0:00:31.3]} 23...
Bxe5 {[%clk 0:00:39.5]} 24. Qxe5 {[%clk 0:00:30.1]} 24... Ba6 {[%clk 0:00:26.5]}
25. Qe2 {[%clk 0:00:17.2]} 25... Rd7 {[%clk 0:00:22.4]} 26. Kh1 {[%clk
0:00:15.8]} 26... Rdc7 {[%clk 0:00:20.6]} 27. g3 {[%clk 0:00:15.6]} 27... Qh5
{[%clk 0:00:17.9]} 28. d5 {[%clk 0:00:13.9]} 28... exd5 {[%clk 0:00:11.2]} 29.
Bxf6 {[%clk 0:00:14]} 29... gxf6 {[%clk 0:00:08.9]} 30. g4 {[%clk 0:00:10.8]}
30... Qe5 {[%clk 0:00:04.7]} 31. Qxe5 {[%clk 0:00:10.2]} 31... fxe5 {[%clk
0:00:05.6]} 32. cxd5 {[%clk 0:00:10.4]} 32... Bxd3 {[%clk 0:00:05.7]} 33. Rxd3
{[%clk 0:00:11.3]} 33... f6 {[%clk 0:00:06.5]} 34. d6 {[%clk 0:00:11.4]} 34...
Rd7 {[%clk 0:00:07.2]} 35. Red1 {[%clk 0:00:10.9]} 35... Rcd8 {[%clk 0:00:07.8]}
36. Kg2 {[%clk 0:00:11]} 36... Kf7 {[%clk 0:00:08.4]} 37. f4 {[%clk 0:00:11.2]}
37... Ke6 {[%clk 0:00:08.5]} 38. f5+ {[%clk 0:00:10.1]} 38... Kf7 {[%clk
0:00:07.7]} 39. Kf3 {[%clk 0:00:10.8]} 39... Rc8 {[%clk 0:00:08.3]} 40. h3
{[%clk 0:00:09.9]} 40... Rc4 {[%clk 0:00:08.5]} 41. Re3 {[%clk 0:00:08.2]} 41...
Rc6 {[%clk 0:00:07.3]} 42. Red3 {[%clk 0:00:08.3]} 42... Rc4 {[%clk 0:00:07.5]}
43. Ke3 {[%clk 0:00:07.5]} 43... h6 {[%clk 0:00:07.4]} 44. R1d2 {[%clk
0:00:07.8]} 44... Ke8 {[%clk 0:00:07.1]} 45. Rb3 {[%clk 0:00:07.2]} 45... Rd8
{[%clk 0:00:03.6]} 46. Rb4 {[%clk 0:00:06.1]} 46... Rxb4 {[%clk 0:00:02.5]} 47.
axb4 {[%clk 0:00:07]} 47... Kd7 {[%clk 0:00:03]} 48. Ra2 {[%clk 0:00:06.7]}
48... Kxd6 {[%clk 0:00:02.5]} 49. Rxa7 {[%clk 0:00:06.6]} 49... Rc8 {[%clk
0:00:03.2]} 50. Rf7 {[%clk 0:00:06]} 50... Rc3+ {[%clk 0:00:02.1]} 51. Kf2
{[%clk 0:00:06.3]} 51... Rxh3 {[%clk 0:00:03]} 52. Rxf6+ {[%clk 0:00:06.8]}
52... Kd5 {[%clk 0:00:02.2]} 53. Rg6 {[%clk 0:00:06.8]} 53... Ke4 {[%clk
0:00:00.9]} 54. f6 {[%clk 0:00:06.9]} 1-0

[Event "Late-Titled-Tuesday-Blitz-April-02-2024"]
[Site "Chess.com"]
[Date "2024.04.02"]
[Round "9"]
[White "NikitaShnadrygin"]
[Black "Aygehovit1992"]
[Result "1/2-1/2"]
[WhiteElo "2698"]
[BlackElo "2860"]
[TimeControl "180+1"]
[EndTime "15:43:48 PDT"]
[Termination "Game drawn - insufficient material"]

1. Nf3 {[%clk 0:02:58.7]} 1... Nf6 {[%clk 0:02:59.4]} 2. g3 {[%clk 0:02:58]}
2... b5 {[%clk 0:02:59.5]} 3. Bg2 {[%clk 0:02:58.7]} 3... Bb7 {[%clk 0:02:59.8]}
4. O-O {[%clk 0:02:59.2]} 4... e6 {[%clk 0:03:00.5]} 5. d4 {[%clk 0:02:59.7]}
5... c5 {[%clk 0:03:00.1]} 6. b3 {[%clk 0:02:59.9]} 6... cxd4 {[%clk 0:02:59.1]}
7. Bb2 {[%clk 0:03:00.6]} 7... Nc6 {[%clk 0:02:56.7]} 8. Nxd4 {[%clk 0:03:00.4]}
8... Qb6 {[%clk 0:02:56.3]} 9. e3 {[%clk 0:03:00.6]} 9... Rc8 {[%clk 0:02:46.8]}
10. Nd2 {[%clk 0:02:59.3]} 10... Nxd4 {[%clk 0:02:43.7]} 11. Bxd4 {[%clk
0:03:00.2]} 11... Bc5 {[%clk 0:02:43.2]} 12. Bxc5 {[%clk 0:03:00.4]} 12... Rxc5
{[%clk 0:02:42.5]} 13. c4 {[%clk 0:03:01.3]} 13... Bxg2 {[%clk 0:02:41.9]} 14.
Kxg2 {[%clk 0:03:02.2]} 14... O-O {[%clk 0:02:18.2]} 15. b4 {[%clk 0:03:02.1]}
15... Rcc8 {[%clk 0:02:17.8]} 16. c5 {[%clk 0:03:02.5]} 16... Qc6+ {[%clk
0:02:16.9]} 17. Qf3 {[%clk 0:03:02.4]} 17... d6 {[%clk 0:02:09.3]} 18. Nb3
{[%clk 0:03:00.8]} 18... dxc5 {[%clk 0:02:02.7]} 19. Nxc5 {[%clk 0:03:00.1]}
19... Nd5 {[%clk 0:02:02.8]} 20. a3 {[%clk 0:02:59.2]} 20... Nb6 {[%clk
0:01:54.4]} 21. Qxc6 {[%clk 0:02:52.9]} 21... Rxc6 {[%clk 0:01:55.3]} 22. Rfd1
{[%clk 0:02:44.1]} 22... Rfc8 {[%clk 0:01:48.1]} 23. Kf3 {[%clk 0:02:32.6]}
23... Kf8 {[%clk 0:01:47]} 24. a4 {[%clk 0:02:06.3]} 24... bxa4 {[%clk
0:01:46.6]} 25. Nxa4 {[%clk 0:02:07.2]} 25... Nd5 {[%clk 0:01:44.4]} 26. Nc5
{[%clk 0:02:00]} 26... R8c7 {[%clk 0:01:29.3]} 27. Rd4 {[%clk 0:01:50.1]} 27...
Ke7 {[%clk 0:01:24.8]} 28. h4 {[%clk 0:01:12.8]} 28... h5 {[%clk 0:01:15.9]} 29.
Nd3 {[%clk 0:01:08.9]} 29... Rc2 {[%clk 0:01:06.6]} 30. Nf4 {[%clk 0:01:00.5]}
30... Nxf4 {[%clk 0:01:06.1]} 31. Rxf4 {[%clk 0:00:59.5]} 31... Rb2 {[%clk
0:01:05.8]} 32. Re4 {[%clk 0:00:54.1]} 32... f5 {[%clk 0:01:01]} 33. Rd4 {[%clk
0:00:52.1]} 33... Rcc2 {[%clk 0:01:00.1]} 34. Rf1 {[%clk 0:00:46.4]} 34... Ra2
{[%clk 0:00:46.7]} 35. e4 {[%clk 0:00:40.2]} 35... g6 {[%clk 0:00:45.2]} 36.
exf5 {[%clk 0:00:39.9]} 36... gxf5 {[%clk 0:00:46.1]} 37. Rf4 {[%clk 0:00:35.8]}
37... Kf6 {[%clk 0:00:46.3]} 38. Kg2 {[%clk 0:00:35.5]} 38... e5 {[%clk
0:00:42.4]} 39. Rf3 {[%clk 0:00:32.4]} 39... e4 {[%clk 0:00:31]} 40. Rb3 {[%clk
0:00:27.3]} 40... Ke5 {[%clk 0:00:31]} 41. Kg1 {[%clk 0:00:26.2]} 41... f4
{[%clk 0:00:28.2]} 42. gxf4+ {[%clk 0:00:23.7]} 42... Kxf4 {[%clk 0:00:29.1]}
43. b5 {[%clk 0:00:24.3]} 43... Rab2 {[%clk 0:00:26.9]} 44. Rb1 {[%clk
0:00:24.5]} 44... Rxb1+ {[%clk 0:00:26.6]} 45. Rxb1 {[%clk 0:00:25.4]} 45... Rc7
{[%clk 0:00:08.9]} 46. b6 {[%clk 0:00:25.2]} 46... Rb7 {[%clk 0:00:08.8]} 47.
Rb5 {[%clk 0:00:19.6]} 47... axb6 {[%clk 0:00:07]} 48. Kf1 {[%clk 0:00:18.7]}
48... Kg4 {[%clk 0:00:06.2]} 49. Rb4 {[%clk 0:00:15.2]} 49... Kf3 {[%clk
0:00:04.9]} 50. Rb5 {[%clk 0:00:15.4]} 50... Kg4 {[%clk 0:00:04.1]} 51. Rb4
{[%clk 0:00:15.2]} 51... Kxh4 {[%clk 0:00:04.7]} 52. Rxe4+ {[%clk 0:00:15.4]}
52... Kg5 {[%clk 0:00:05.4]} 53. Kg2 {[%clk 0:00:16]} 53... b5 {[%clk
0:00:05.5]} 54. Rb4 {[%clk 0:00:16.1]} 54... Kf5 {[%clk 0:00:04.8]} 55. Kh3
{[%clk 0:00:16.6]} 55... Ke5 {[%clk 0:00:05]} 56. Kh4 {[%clk 0:00:17.3]} 56...
Kd5 {[%clk 0:00:05.2]} 57. Kxh5 {[%clk 0:00:18]} 57... Kc5 {[%clk 0:00:06]} 58.
Rb1 {[%clk 0:00:18.3]} 58... b4 {[%clk 0:00:06.5]} 59. f4 {[%clk 0:00:18.9]}
59... Kd4 {[%clk 0:00:03.9]} 60. Kg6 {[%clk 0:00:18.6]} 60... Rb6+ {[%clk
0:00:02.6]} 61. Kg5 {[%clk 0:00:18.5]} 61... Rb5+ {[%clk 0:00:02.7]} 62. f5
{[%clk 0:00:18.9]} 62... Kc3 {[%clk 0:00:02.7]} 63. Kg6 {[%clk 0:00:18.6]} 63...
Kc2 {[%clk 0:00:03.4]} 64. Rf1 {[%clk 0:00:18.6]} 64... b3 {[%clk 0:00:04]} 65.
f6 {[%clk 0:00:19.2]} 65... b2 {[%clk 0:00:04]} 66. f7 {[%clk 0:00:19.7]} 66...
Rb6+ {[%clk 0:00:04.6]} 67. Kg7 {[%clk 0:00:19.8]} 67... Rb7 {[%clk 0:00:04.7]}
68. Kg8 {[%clk 0:00:20.1]} 68... Rb8+ {[%clk 0:00:05]} 69. f8=Q {[%clk
0:00:20.5]} 69... Rxf8+ {[%clk 0:00:05.2]} 70. Kxf8 {[%clk 0:00:21.4]} 70...
b1=Q {[%clk 0:00:05.5]} 71. Rxb1 {[%clk 0:00:22.1]} 71... Kxb1 {[%clk
0:00:06.4]} 1/2-1/2

[Event "Late-Titled-Tuesday-Blitz-April-02-2024"]
[Site "Chess.com"]
[Date "2024.04.02"]
[Round "9"]
[White "manitodeplomo"]
[Black "santosalberto1987"]
[Result "1-0"]
[WhiteElo "2634"]
[BlackElo "2521"]
[TimeControl "180+1"]
[EndTime "15:43:48 PDT"]
[Termination "manitodeplomo won on time"]

1. d4 {[%clk 0:03:00.9]} 1... Nf6 {[%clk 0:02:52.1]} 2. c4 {[%clk 0:03:00.9]}
2... d6 {[%clk 0:02:52.1]} 3. Nf3 {[%clk 0:02:59.4]} 3... g6 {[%clk 0:02:51.5]}
4. Nc3 {[%clk 0:02:59.3]} 4... Bf5 {[%clk 0:02:51.7]} 5. Qb3 {[%clk 0:02:57]}
5... b6 {[%clk 0:02:48.7]} 6. d5 {[%clk 0:02:56.1]} 6... e5 {[%clk 0:02:48.3]}
7. dxe6 {[%clk 0:02:53.6]} 7... Bxe6 {[%clk 0:02:45.6]} 8. Nd4 {[%clk
0:02:53.8]} 8... Bd7 {[%clk 0:02:43.2]} 9. g3 {[%clk 0:02:48.6]} 9... Nc6 {[%clk
0:02:41.2]} 10. Qd1 {[%clk 0:02:23.7]} 10... Nxd4 {[%clk 0:02:40.5]} 11. Qxd4
{[%clk 0:02:23.6]} 11... Bc6 {[%clk 0:02:40.9]} 12. f3 {[%clk 0:02:23.3]} 12...
Bg7 {[%clk 0:02:40.1]} 13. e4 {[%clk 0:02:11.9]} 13... O-O {[%clk 0:02:39.3]}
14. Qd2 {[%clk 0:02:00.8]} 14... Re8 {[%clk 0:02:32.2]} 15. Be2 {[%clk
0:01:58.5]} 15... a5 {[%clk 0:02:23]} 16. O-O {[%clk 0:01:56.1]} 16... Nd7
{[%clk 0:02:22.8]} 17. b3 {[%clk 0:01:43.8]} 17... Nc5 {[%clk 0:02:16.4]} 18.
Rb1 {[%clk 0:01:31.2]} 18... f5 {[%clk 0:02:05.4]} 19. Bb2 {[%clk 0:00:56.9]}
19... fxe4 {[%clk 0:02:04.5]} 20. fxe4 {[%clk 0:00:54]} 20... Nxe4 {[%clk
0:01:56.1]} 21. Nxe4 {[%clk 0:00:53.4]} 21... Bxe4 {[%clk 0:01:56.5]} 22. Rbe1
{[%clk 0:00:48.8]} 22... Bxb2 {[%clk 0:01:53]} 23. Qxb2 {[%clk 0:00:49.7]} 23...
Qg5 {[%clk 0:01:50.6]} 24. Qd4 {[%clk 0:00:45.4]} 24... Bc6 {[%clk 0:01:45.7]}
25. Bg4 {[%clk 0:00:41.9]} 25... Re5 {[%clk 0:00:30.1]} 26. Rxe5 {[%clk
0:00:25.3]} 26... Qxe5 {[%clk 0:00:28.5]} 27. Qxe5 {[%clk 0:00:21.7]} 27... dxe5
{[%clk 0:00:29.4]} 28. Be6+ {[%clk 0:00:22.2]} 28... Kh8 {[%clk 0:00:27.1]} 29.
Rf7 {[%clk 0:00:21.1]} 29... Re8 {[%clk 0:00:26.8]} 30. Bg4 {[%clk 0:00:13.7]}
30... Be4 {[%clk 0:00:21.2]} 31. Rxc7 {[%clk 0:00:12.5]} 31... Bd3 {[%clk
0:00:21.4]} 32. Kf2 {[%clk 0:00:11.8]} 32... e4 {[%clk 0:00:19.8]} 33. Ke3
{[%clk 0:00:12]} 33... h5 {[%clk 0:00:20.2]} 34. Rc8 {[%clk 0:00:07.8]} 34...
Rxc8 {[%clk 0:00:17.4]} 35. Bxc8 {[%clk 0:00:08.7]} 35... Bb1 {[%clk 0:00:17]}
36. a3 {[%clk 0:00:08.4]} 36... Ba2 {[%clk 0:00:17.1]} 37. b4 {[%clk 0:00:08.7]}
37... axb4 {[%clk 0:00:17.3]} 38. axb4 {[%clk 0:00:09.6]} 38... Bxc4 {[%clk
0:00:17.8]} 39. Kxe4 {[%clk 0:00:09.4]} 39... Kg7 {[%clk 0:00:18.1]} 40. Ke5
{[%clk 0:00:09.1]} 40... h4 {[%clk 0:00:17]} 41. gxh4 {[%clk 0:00:09]} 41... Kh6
{[%clk 0:00:14.9]} 42. Bg4 {[%clk 0:00:09]} 42... Bd3 {[%clk 0:00:14.2]} 43. Kf6
{[%clk 0:00:08.7]} 43... Bc2 {[%clk 0:00:13.6]} 44. Bf3 {[%clk 0:00:08.6]} 44...
Bd3 {[%clk 0:00:13.7]} 45. Ke5 {[%clk 0:00:08.5]} 45... Bc2 {[%clk 0:00:13.8]}
46. Kd6 {[%clk 0:00:08.7]} 46... Bd3 {[%clk 0:00:13.8]} 47. Kc6 {[%clk
0:00:08.7]} 47... b5 {[%clk 0:00:12]} 48. Kc5 {[%clk 0:00:08.8]} 48... Bf1
{[%clk 0:00:11.9]} 49. Bc6 {[%clk 0:00:08.8]} 49... Kh5 {[%clk 0:00:10.7]} 50.
Bxb5 {[%clk 0:00:09.3]} 50... Bg2 {[%clk 0:00:10.8]} 51. Be8 {[%clk 0:00:08.7]}
51... Kxh4 {[%clk 0:00:10.1]} 52. Bxg6 {[%clk 0:00:08.4]} 52... Bf1 {[%clk
0:00:08.6]} 53. Be8 {[%clk 0:00:06.9]} 53... Kh3 {[%clk 0:00:07.4]} 54. Bb5
{[%clk 0:00:07.2]} 54... Bg2 {[%clk 0:00:07.1]} 55. Bc6 {[%clk 0:00:06.9]} 55...
Bf1 {[%clk 0:00:07.1]} 56. Bd5 {[%clk 0:00:07.5]} 56... Kxh2 {[%clk 0:00:07.1]}
57. Bc4 {[%clk 0:00:08]} 57... Bg2 {[%clk 0:00:07.2]} 58. b5 {[%clk 0:00:08.3]}
58... Bb7 {[%clk 0:00:06.3]} 59. Bd5 {[%clk 0:00:08.2]} 59... Bc8 {[%clk
0:00:05.8]} 60. Kd6 {[%clk 0:00:08.6]} 60... Kg3 {[%clk 0:00:05]} 61. Kc7 {[%clk
0:00:09]} 1-0

[Event "Late-Titled-Tuesday-Blitz-April-02-2024"]
[Site "Chess.com"]
[Date "2024.04.02"]
[Round "9"]
[White "ahkashefi2800"]
[Black "KuzubovYuriy"]
[Result "0-1"]
[WhiteElo "2625"]
[BlackElo "2926"]
[TimeControl "180+1"]
[EndTime "15:43:49 PDT"]
[Termination "KuzubovYuriy won on time"]

1. Nf3 {[%clk 0:02:50.2]} 1... d5 {[%clk 0:02:59.4]} 2. c3 {[%clk 0:02:49.4]}
2... Nc6 {[%clk 0:02:53.3]} 3. g3 {[%clk 0:02:44.6]} 3... e5 {[%clk 0:02:51.6]}
4. d3 {[%clk 0:02:43.1]} 4... Bc5 {[%clk 0:02:47.4]} 5. Bg2 {[%clk 0:02:39.6]}
5... Qe7 {[%clk 0:02:47.5]} 6. Nfd2 {[%clk 0:02:31.1]} 6... Nf6 {[%clk
0:02:41.7]} 7. O-O {[%clk 0:02:26.8]} 7... h5 {[%clk 0:02:39.3]} 8. c4 {[%clk
0:02:13]} 8... d4 {[%clk 0:02:18.8]} 9. Nf3 {[%clk 0:02:10.4]} 9... Bg4 {[%clk
0:02:01.4]} 10. Bg5 {[%clk 0:02:09]} 10... Qd7 {[%clk 0:01:56.6]} 11. h4 {[%clk
0:02:03.8]} 11... Nh7 {[%clk 0:01:49.9]} 12. Bd2 {[%clk 0:02:02]} 12... a5
{[%clk 0:01:43.8]} 13. Na3 {[%clk 0:01:58.7]} 13... O-O {[%clk 0:01:42.1]} 14.
Nc2 {[%clk 0:01:54.5]} 14... Rfe8 {[%clk 0:01:39.2]} 15. a3 {[%clk 0:01:49.3]}
15... a4 {[%clk 0:01:39.3]} 16. Bb4 {[%clk 0:01:41]} 16... b6 {[%clk 0:01:38.6]}
17. Rb1 {[%clk 0:01:38.3]} 17... Bh3 {[%clk 0:01:32.4]} 18. b3 {[%clk
0:01:34.4]} 18... axb3 {[%clk 0:01:31.3]} 19. Rxb3 {[%clk 0:01:35.3]} 19... Bxg2
{[%clk 0:01:25.7]} 20. Kxg2 {[%clk 0:01:36.2]} 20... Nf6 {[%clk 0:01:22.1]} 21.
Bxc5 {[%clk 0:01:31.6]} 21... bxc5 {[%clk 0:01:22.2]} 22. Rb5 {[%clk 0:01:32.2]}
22... Qd6 {[%clk 0:01:11.8]} 23. Qd2 {[%clk 0:01:25.3]} 23... e4 {[%clk
0:01:04.2]} 24. Ng5 {[%clk 0:01:24.1]} 24... exd3 {[%clk 0:01:00.7]} 25. exd3
{[%clk 0:01:21]} 25... Ne5 {[%clk 0:00:58.2]} 26. Re1 {[%clk 0:00:51.1]} 26...
Qc6+ {[%clk 0:00:51.4]} 27. f3 {[%clk 0:00:49.4]} 27... Nh7 {[%clk 0:00:40.8]}
28. Nxd4 {[%clk 0:00:43.5]} 28... Qd7 {[%clk 0:00:18.8]} 29. Nxh7 {[%clk
0:00:33.9]} 29... Qxd4 {[%clk 0:00:13.6]} 30. Re4 {[%clk 0:00:18.1]} 30... Qxd3
{[%clk 0:00:10.3]} 31. Qxd3 {[%clk 0:00:16.1]} 31... Nxd3 {[%clk 0:00:10.3]} 32.
Ng5 {[%clk 0:00:13]} 32... Rxe4 {[%clk 0:00:06.1]} 33. Nxe4 {[%clk 0:00:12.9]}
33... Rxa3 {[%clk 0:00:06.2]} 34. Nxc5 {[%clk 0:00:11.9]} 34... Ra2+ {[%clk
0:00:06.7]} 35. Kg1 {[%clk 0:00:11.7]} 35... Ne5 {[%clk 0:00:06]} 36. f4 {[%clk
0:00:02.6]} 36... Nxc4 {[%clk 0:00:06.3]} 37. Ne4 {[%clk 0:00:02.5]} 37... f6
{[%clk 0:00:06]} 38. Rc5 {[%clk 0:00:01.8]} 38... Ne3 {[%clk 0:00:05.3]} 39.
Rxc7 {[%clk 0:00:02]} 39... Nf5 {[%clk 0:00:05.3]} 40. Kh1 {[%clk 0:00:02.2]}
40... Re2 {[%clk 0:00:04.8]} 41. Rc8+ {[%clk 0:00:02.7]} 41... Kh7 {[%clk
0:00:03.9]} 42. Rc5 {[%clk 0:00:03.4]} 42... Kg6 {[%clk 0:00:03.4]} 43. Nc3
{[%clk 0:00:03.1]} 43... Re3 {[%clk 0:00:02.9]} 44. Kh2 {[%clk 0:00:02.2]} 44...
Nxg3 {[%clk 0:00:02]} 45. Nd5 {[%clk 0:00:02.4]} 45... Ra3 {[%clk 0:00:01.6]}
46. Ne7+ {[%clk 0:00:02.7]} 46... Kf7 {[%clk 0:00:01.9]} 47. Nf5 {[%clk
0:00:02]} 47... Nxf5 {[%clk 0:00:02]} 48. Rxf5 {[%clk 0:00:02.9]} 48... Kg6
{[%clk 0:00:01.5]} 49. Rd5 {[%clk 0:00:03.1]} 49... Rf3 {[%clk 0:00:02]} 50. Rd4
{[%clk 0:00:01.9]} 50... Kf5 {[%clk 0:00:02.5]} 51. Rd5+ {[%clk 0:00:02.3]}
51... Kg4 {[%clk 0:00:03]} 52. Rd7 {[%clk 0:00:02.2]} 52... g6 {[%clk
0:00:03.5]} 53. Rd6 {[%clk 0:00:02.3]} 53... Rxf4 {[%clk 0:00:03.8]} 54. Rd7
{[%clk 0:00:01.7]} 54... Kxh4 {[%clk 0:00:04.2]} 55. Rg7 {[%clk 0:00:01.8]}
55... g5 {[%clk 0:00:04.6]} 56. Rh7 {[%clk 0:00:01.9]} 56... Kg4 {[%clk
0:00:05.2]} 57. Rg7 {[%clk 0:00:01.9]} 57... h4 {[%clk 0:00:05.8]} 58. Rd7
{[%clk 0:00:02]} 58... Rf2+ {[%clk 0:00:06.1]} 59. Kg1 {[%clk 0:00:01.9]} 59...
Ra2 {[%clk 0:00:06.4]} 60. Rd6 {[%clk 0:00:02.2]} 60... f5 {[%clk 0:00:06.8]}
61. Rd2 {[%clk 0:00:02.2]} 61... Rxd2 {[%clk 0:00:06.2]} 0-1

[Event "Late-Titled-Tuesday-Blitz-April-02-2024"]
[Site "Chess.com"]
[Date "2024.04.02"]
[Round "9"]
[White "Zq1"]
[Black "Zhigalko_Sergei"]
[Result "0-1"]
[WhiteElo "2620"]
[BlackElo "2869"]
[TimeControl "180+1"]
[EndTime "15:43:50 PDT"]
[Termination "Zhigalko_Sergei won on time"]

1. d4 {[%clk 0:03:00.9]} 1... Nf6 {[%clk 0:02:58.1]} 2. c4 {[%clk 0:03:00.6]}
2... e6 {[%clk 0:02:58]} 3. g3 {[%clk 0:03:00.9]} 3... c5 {[%clk 0:02:56.6]} 4.
Nf3 {[%clk 0:03:00.3]} 4... cxd4 {[%clk 0:02:56.7]} 5. Nxd4 {[%clk 0:03:00.4]}
5... Qc7 {[%clk 0:02:56.9]} 6. b3 {[%clk 0:02:57]} 6... Bb4+ {[%clk 0:02:56.2]}
7. Bd2 {[%clk 0:02:56.2]} 7... Bc5 {[%clk 0:02:56.5]} 8. e3 {[%clk 0:02:54.5]}
8... Ne4 {[%clk 0:02:52.5]} 9. Bg2 {[%clk 0:02:53]} 9... Nxd2 {[%clk 0:02:50.7]}
10. Qxd2 {[%clk 0:02:53.2]} 10... Nc6 {[%clk 0:02:48.9]} 11. O-O {[%clk
0:02:47.8]} 11... O-O {[%clk 0:02:37.1]} 12. Nc3 {[%clk 0:02:46.4]} 12... a6
{[%clk 0:02:33.1]} 13. Rfd1 {[%clk 0:02:38.3]} 13... Be7 {[%clk 0:02:09.2]} 14.
Rac1 {[%clk 0:02:36.1]} 14... Ne5 {[%clk 0:02:03]} 15. f4 {[%clk 0:02:30.4]}
15... Ng4 {[%clk 0:02:01.3]} 16. h3 {[%clk 0:02:28.8]} 16... Nf6 {[%clk
0:02:01.3]} 17. g4 {[%clk 0:02:22.9]} 17... d6 {[%clk 0:01:56.3]} 18. g5 {[%clk
0:02:21.7]} 18... Nd7 {[%clk 0:01:52.2]} 19. h4 {[%clk 0:02:20.5]} 19... Rd8
{[%clk 0:01:45.7]} 20. f5 {[%clk 0:02:08.7]} 20... Ne5 {[%clk 0:01:41.9]} 21.
Rf1 {[%clk 0:02:05.5]} 21... Bf8 {[%clk 0:01:26.5]} 22. Ne4 {[%clk 0:01:58.7]}
22... exf5 {[%clk 0:01:09.5]} 23. Nxf5 {[%clk 0:01:57.4]} 23... Be6 {[%clk
0:01:04.3]} 24. Nc3 {[%clk 0:01:53.6]} 24... Qa5 {[%clk 0:01:00.5]} 25. Rcd1
{[%clk 0:01:45.3]} 25... Rab8 {[%clk 0:00:47.8]} 26. Nd5 {[%clk 0:01:34.2]}
26... Qxd2 {[%clk 0:00:47.4]} 27. Rxd2 {[%clk 0:01:34.8]} 27... b5 {[%clk
0:00:47.7]} 28. cxb5 {[%clk 0:01:27]} 28... Rxb5 {[%clk 0:00:33.5]} 29. Nc7
{[%clk 0:01:24.5]} 29... Rc5 {[%clk 0:00:19.3]} 30. Nxe6 {[%clk 0:01:22.9]}
30... fxe6 {[%clk 0:00:19.5]} 31. Nd4 {[%clk 0:01:22.8]} 31... Re8 {[%clk
0:00:11.3]} 32. Bh3 {[%clk 0:01:22]} 32... Rc3 {[%clk 0:00:11.6]} 33. Bxe6+
{[%clk 0:01:03.7]} 33... Kh8 {[%clk 0:00:11.8]} 34. Re2 {[%clk 0:00:47.6]} 34...
d5 {[%clk 0:00:08.1]} 35. Bxd5 {[%clk 0:00:27.3]} 35... Bc5 {[%clk 0:00:08.6]}
36. Kg2 {[%clk 0:00:27]} 36... Ng4 {[%clk 0:00:08.6]} 37. Ne6 {[%clk 0:00:14.5]}
37... Nxe3+ {[%clk 0:00:06.6]} 38. Rxe3 {[%clk 0:00:14.7]} 38... Bxe3 {[%clk
0:00:04.4]} 39. Rf7 {[%clk 0:00:14.3]} 39... Rc2+ {[%clk 0:00:03.6]} 40. Kh3
{[%clk 0:00:11.9]} 40... Rc3 {[%clk 0:00:02.6]} 41. Kg4 {[%clk 0:00:11.4]} 41...
Rd3 {[%clk 0:00:01.3]} 42. Bc4 {[%clk 0:00:10.4]} 42... Rd2 {[%clk 0:00:01.5]}
43. Nxg7 {[%clk 0:00:07.5]} 43... Re4+ {[%clk 0:00:01.7]} 44. Kf3 {[%clk
0:00:05.7]} 44... Rf4+ {[%clk 0:00:01.6]} 45. Kxe3 {[%clk 0:00:05.4]} 45... Rxf7
{[%clk 0:00:01.5]} 46. Bxf7 {[%clk 0:00:04]} 46... Rxa2 {[%clk 0:00:01.9]} 47.
Nh5 {[%clk 0:00:02.6]} 47... Rh2 {[%clk 0:00:02.3]} 48. Bc4 {[%clk 0:00:02.1]}
48... Rxh4 {[%clk 0:00:03.2]} 49. Nf6 {[%clk 0:00:02]} 49... a5 {[%clk
0:00:03.7]} 50. Kd3 {[%clk 0:00:02.1]} 50... Rh3+ {[%clk 0:00:03.2]} 51. Kc2
{[%clk 0:00:02.2]} 51... Kg7 {[%clk 0:00:03]} 52. Kb2 {[%clk 0:00:02.2]} 52...
Kg6 {[%clk 0:00:02.8]} 53. Ne4 {[%clk 0:00:02.9]} 53... Re3 {[%clk 0:00:02.5]}
54. Nd6 {[%clk 0:00:02.5]} 54... Kxg5 {[%clk 0:00:02.6]} 55. Nb7 {[%clk
0:00:02.8]} 55... Re5 {[%clk 0:00:02]} 56. Ka3 {[%clk 0:00:03.1]} 56... h5
{[%clk 0:00:02.3]} 57. Ka4 {[%clk 0:00:03.5]} 57... h4 {[%clk 0:00:02.9]} 58.
Nxa5 {[%clk 0:00:03.8]} 58... h3 {[%clk 0:00:03.3]} 59. Bf1 {[%clk 0:00:03.8]}
59... h2 {[%clk 0:00:02.9]} 60. Bg2 {[%clk 0:00:04.4]} 60... Re2 {[%clk
0:00:02.5]} 61. Ba8 {[%clk 0:00:04.1]} 61... Kf4 {[%clk 0:00:02.1]} 62. Bb7
{[%clk 0:00:04.3]} 62... Re4+ {[%clk 0:00:01.2]} 63. b4 {[%clk 0:00:03.7]} 63...
h1=Q {[%clk 0:00:01.4]} 64. Bd5 {[%clk 0:00:03.5]} 64... Qh2 {[%clk 0:00:01.3]}
0-1